fUST/lending_fUST_20240228
["ID","MTS","AMOUNT","RATE_DAILY","PERIOD"]
[315464264,1709053709265,-500.0,0.0002,2]
[315464265,1709053709289,-230.839303,0.0002,2]
[315464266,1709053709314,-230.839307,0.0002,2]
[315464267,1709053709340,-504.21335184,0.0002,2]
[315464268,1709053709364,-527.03534201,0.0002,2]
[315464269,1709053709388,-500.0,0.0002,2]
[315464270,1709053709415,-500.0,0.0002,2]
[315464271,1709053709440,-500.0,0.0002,2]
[315464272,1709053709465,-500.0,0.0002,2]
[315464273,1709053709488,-500.0,0.0002,2]
[315464274,1709053709514,-838.02,0.0002,2]
[315464275,1709053709539,-500.0,0.0002,2]
[315464276,1709053709565,-500.0,0.0002,2]
[315464277,1709053709588,-500.0,0.0002,2]
[315464278,1709053709612,-758.26,0.0002,2]
[315464279,1709053709636,-500.0,0.0002,2]
[315464280,1709053709660,-151.0,0.0002,2]
[315464281,1709053709684,-151.0,0.0002,2]
[315464282,1709053709710,-500.0,0.0002,2]
[315464283,1709053709734,-2659.7,0.0002,2]
[315464284,1709053709758,-5605.7,0.0002,2]
[315464285,1709053709783,-500.0,0.0002,2]
[315464286,1709053709807,-500.0,0.0002,2]
[315464287,1709053709831,-500.0,0.0002,2]
[315464288,1709053709856,-500.0,0.0002,2]
[315464289,1709053709884,-500.0,0.0002,2]
[315464290,1709053709909,-500.0,0.0002,2]
[315464291,1709053709937,-2142.95,0.0002,2]
[315464292,1709053709962,-1984.31,0.0002,2]
[315464293,1709053709987,-500.0,0.0002,2]
[315464294,1709053710012,-5393.14,0.0002,2]
[315464295,1709053710038,-24206.87,0.0002,2]
[315464296,1709053710063,-500.0,0.0002,2]
[315464297,1709053710088,-1684.36,0.0002,2]
[315464298,1709053710114,-500.0,0.0002,2]
[315464299,1709053710140,-500.0,0.0002,2]
[315464300,1709053710166,-500.0,0.0002,2]
[315464301,1709053710196,-500.0,0.0002,2]
[315464302,1709053710226,-500.0,0.0002,2]
[315464303,1709053710255,-1939.47,0.0002,2]
[315464304,1709053710281,-500.0,0.0002,2]
[315464305,1709053710309,-500.0,0.0002,2]
[315464306,1709053710334,-1307.008032,0.0002,2]
[315464307,1709053710361,-1307.008032,0.0002,2]
[315464308,1709053710387,-219.53147788,0.0002,2]
[315464309,1709053710411,-1307.008032,0.0002,2]
[315464310,1709053710438,-1307.00803102,0.0002,2]
[315464311,1709053710464,-1782.58,0.0002,2]
[315464312,1709053710488,-500.0,0.0002,2]
[315464313,1709053710513,-349.63316698,0.0002,2]
[315464314,1709053710538,-500.0,0.0002,2]
[315464315,1709053710562,-989.03,0.0002,2]
[315464316,1709053710587,-500.0,0.0002,2]
[315464317,1709053710611,-8853.6,0.0002,2]
[315464318,1709053710636,-729.71,0.0002,2]
[315464319,1709053710659,-500.0,0.0002,2]
[315464320,1709053710687,-500.0,0.0002,2]
[315464321,1709053710711,-694.64,0.0002,2]
[315464322,1709053710736,-4185.28,0.0002,2]
[315464323,1709053710860,-882.47,0.0002,2]
[315464324,1709053710886,-4878.61,0.0002,2]
[315464325,1709053710912,-4352.89,0.0002,2]
[315464326,1709053710938,-21984.73,0.0002,2]
[315464327,1709053710962,-398.21029264,0.0002,2]
[315464328,1709053710987,-500.0,0.0002,2]
[315464329,1709053711012,-920.52,0.0002,2]
[315464330,1709053711038,-3226.57,0.0002,2]
[315464331,1709053711063,-500.0,0.0002,2]
[315464332,1709053711090,-984.09,0.0002,2]
[315464333,1709053711118,-281.663994,0.0002,2]
[315464334,1709053711145,-2838.36,0.0002,2]
[315464335,1709053711172,-281.663994,0.0002,2]
[315464336,1709053711204,-1374.59,0.0002,2]
[315464337,1709053711233,-281.663994,0.0002,2]
[315464338,1709053711262,-281.663995,0.0002,2]
[315464339,1709053711290,-911.3,0.0002,2]
[315464340,1709053711318,-500.0,0.0002,2]
[315464341,1709053711346,-2293.72,0.0002,2]
[315464342,1709053711374,-1120.11,0.0002,2]
[315464343,1709053711400,-500.0,0.0002,2]
[315464344,1709053711427,-890.52,0.0002,2]
[315464345,1709053711454,-500.0,0.0002,2]
[315464346,1709053711478,-500.0,0.0002,2]
[315464347,1709053711503,-500.0,0.0002,2]
[315464348,1709053711528,-2124.69,0.0002,2]
[315464349,1709053711553,-11017.86,0.0002,2]
[315464350,1709053711577,-500.0,0.0002,2]
[315464351,1709053711602,-500.0,0.0002,2]
[315464352,1709053711628,-500.0,0.0002,2]
[315464353,1709053711954,500.0,0.00019178,2]
[315464354,1709053711987,500.0,0.00019452,2]
[315464355,1709053712017,500.0,0.00019726,2]
[315464356,1709053712063,500.0,0.0002,2]
[315464357,1709053712135,200.6117409,0.000193,2]
[315464358,1709053712258,500.0,0.00019178,2]
[315464359,1709053712295,155.16292107,0.00019451,2]
[315464360,1709053712331,27705.53,0.00019716,3]
[315464361,1709053719865,500.0,0.00019178,2]
[315464362,1709053720150,500.0,0.00019452,2]
[315464363,1709053720417,500.0,0.00019726,2]
[315464364,1709053720764,500.0,0.0002,2]
[315464365,1709053722213,20172.39,0.00019451,2]
[315464366,1709053722781,20172.39,0.00019725,2]
[315464367,1709053722812,4494.29,0.00019178,2]
[315464368,1709053723068,20172.39,0.00019999,2]
[315464369,1709053723104,4494.29,0.00019452,2]
[315464370,1709053723383,4494.29,0.00019726,2]
[315464371,1709053723583,500.0,0.00019178,2]
[315464372,1709053723653,4494.29,0.0002,2]
[315464373,1709053723777,213.16828129,0.00019452,2]
[315464377,1709053732736,155.17534814,0.00019716,2]
[315464378,1709053736613,500.0,0.00019178,2]
[315464379,1709053736895,500.0,0.00019452,2]
[315464380,1709053736958,500.0,0.00019178,2]
[315464381,1709053737192,500.0,0.00019726,2]
[315464382,1709053737467,469.37213106,0.0002,2]
[315464383,1709053738527,500.0,0.00019178,2]
[315464384,1709053742877,500.0,0.00019178,2]
[315464385,1709053743175,500.0,0.00019452,2]
[315464386,1709053743481,500.0,0.00019726,2]
[315464387,1709053743779,500.0,0.0002,2]
[315464388,1709053746199,500.0,0.00019178,2]
[315464389,1709053746446,500.0,0.00019452,2]
[315464390,1709053746740,500.0,0.00019726,2]
[315464391,1709053747007,500.0,0.0002,2]
[315464393,1709053750736,155.17534814,0.00019716,2]
[315464394,1709053752617,1616.23,0.00019451,2]
[315464395,1709053753264,1616.23,0.00019725,2]
[315464396,1709053753468,1616.23,0.00019999,2]
[315464398,1709053758640,587.47,0.00019178,2]
[315464399,1709053758941,587.47,0.00019452,2]
[315464400,1709053759282,587.47,0.00019726,2]
[315464401,1709053759576,587.47,0.0002,2]
[315464407,1709053760977,155.17534814,0.00019716,2]
[315464408,1709053763025,500.0,0.00019451,2]
[315464409,1709053763321,500.0,0.00019725,2]
[315464410,1709053763618,500.0,0.00019999,2]
[315464411,1709053764746,205.95803044,0.00019716,2]
[315464413,1709053765286,449.86323283,0.00019178,2]
[315464414,1709053773004,176.03843976,0.00019716,2]
[315464415,1709053774508,3383.21,0.00019178,2]
[315464416,1709053774759,3383.21,0.00019452,2]
[315464417,1709053775048,3383.21,0.00019726,2]
[315464418,1709053775668,3383.21,0.0002,2]
[315464420,1709053782087,500.0,0.00019178,2]
[315464421,1709053782404,500.0,0.00019452,2]
[315464422,1709053782699,500.0,0.00019726,2]
[315464423,1709053783004,500.0,0.0002,2]
[315464424,1709053786254,1522.97,0.00019178,2]
[315464425,1709053786546,1522.97,0.00019452,2]
[315464427,1709053786797,1522.97,0.00019726,2]
[315464428,1709053787249,1522.97,0.0002,2]
[315464429,1709053789986,500.0,0.00019178,2]
[315464430,1709053790289,500.0,0.00019452,2]
[315464431,1709053790590,190.55274162,0.00019726,2]
[315464432,1709053790821,983.5022252,0.00019366,2]
[315464433,1709053794259,608.09,0.00019451,2]
[315464434,1709053794290,500.0,0.00019178,2]
[315464435,1709053794530,500.0,0.00019452,2]
[315464436,1709053794587,608.09,0.00019725,2]
[315464437,1709053794844,500.0,0.00019726,2]
[315464438,1709053794875,608.09,0.00019999,2]
[315464439,1709053795210,208.66852145,0.0002,2]
[315464440,1709053798054,1485.48,0.00019178,2]
[315464441,1709053798338,1485.48,0.00019452,2]
[315464442,1709053798646,1485.48,0.00019726,2]
[315464443,1709053798977,1485.48,0.0002,2]
[315464444,1709053800636,500.0,0.00019178,2]
[315464445,1709053800914,500.0,0.00019452,2]
[315464446,1709053801519,500.0,0.00019726,2]
[315464447,1709053801816,500.0,0.0002,2]
[315464449,1709053804169,2452.67,0.00019178,2]
[315464450,1709053804820,2452.67,0.00019452,2]
[315464451,1709053805174,2452.67,0.00019726,2]
[315464452,1709053805394,3487.73,0.00019451,2]
[315464453,1709053805458,2452.67,0.0002,2]
[315464454,1709053805692,3487.73,0.00019725,2]
[315464489,1709053832678,-4850.21655023,0.00019178,2]
[315464492,1709053832691,-2527.78344977,0.00019178,2]
[315464494,1709053832699,-4352.89,0.00019178,2]
[315464496,1709053832708,-3429.00715696,0.00019178,2]
[315464546,1709053838576,-1084.5561706,0.00019178,2]
[315464547,1709053838589,-365.04667244,0.00019178,2]
[315464548,1709053838598,-186.288497,0.00019178,2]
[315464549,1709053838608,-166.666666,0.00019178,2]
[315464550,1709053838618,-500.0,0.00019451,2]
[315464551,1709053838629,-9456.75107856,0.00019451,2]
[315464552,1709053838641,-333.13628422,0.00019451,2]
[315464553,1709053838657,-1691.68357267,0.00019451,2]
[315464554,1709053838673,-3691.03044673,0.00019451,2]
[315464564,1709053841832,-4387.93379692,0.00019175,4]
[315464565,1709053841842,-155.17224119,0.00019177,2]
[315464566,1709053841855,-6812.12861782,0.00019451,2]
[315464567,1709053841864,-500.0,0.00019451,2]
[315464568,1709053841874,-920.52,0.00019451,2]
[315464569,1709053841883,-7378.0,0.00019452,2]
[315464570,1709053841892,-4352.89,0.00019452,2]
[315464571,1709053841902,-4878.61,0.00019452,2]
[315464572,1709053841911,-166.666666,0.00019627,2]
[315464573,1709053841921,-27625.34700461,0.00019715,3]
[315464574,1709053841935,-6390.88299539,0.00019715,3]
[315464575,1709053841944,-126.76332722,0.00019715,3]
[315464576,1709053841956,-1669.03118031,0.00019715,3]
[315464577,1709053841968,-26551.06549247,0.00019715,3]
[315464578,1709053841977,-500.0,0.00019725,2]
[315464579,1709053841987,-21984.73,0.00019725,2]
[315464580,1709053841997,-500.0,0.00019725,2]
[315464581,1709053842006,-155.17224119,0.00019725,2]
[315464582,1709053842016,-920.52,0.00019725,2]
[315464583,1709053842025,-155.17224119,0.00019725,2]
[315464584,1709053842034,-7378.0,0.00019726,2]
[315464585,1709053842044,-4352.89,0.00019726,2]
[315464586,1709053842055,-4878.61,0.00019726,2]
[315464587,1709053842065,-15798.88676755,0.0001991,2]
[315464588,1709053842074,-3487.73,0.00019999,2]
[315464589,1709053842084,-502.24533247,0.00019999,2]
[315464590,1709053842094,-21984.73,0.00019999,2]
[315464591,1709053842104,-500.0,0.00019999,2]
[315464592,1709053842114,-920.52,0.00019999,2]
[315464593,1709053842123,-7378.0,0.0002,2]
[315464594,1709053842133,-4352.89,0.0002,2]
[315464595,1709053842143,-4878.61,0.0002,2]
[315464596,1709053842152,-369.86362554,0.00020027,2]
[315464597,1709053842162,-166.666666,0.00020076,2]
[315464598,1709053842171,-200.6117409,0.00020123,2]
[315464599,1709053842181,-200.6117409,0.00020123,2]
[315464600,1709053842193,-207.6035763,0.00020173,2]
[315464601,1709053842202,-159.81789242,0.00020202,2]
[315464602,1709053842212,-620.70315797,0.0002021,2]
[315464603,1709053842221,-35278.37,0.00020253,3]
[315464604,1709053842231,-640.11979573,0.00020271,2]
[315464605,1709053842241,-500.0,0.00020273,2]
[315464606,1709053842250,-500.0,0.00020273,2]
[315464607,1709053842260,-500.0,0.00020273,2]
[315464608,1709053842270,-500.0,0.00020273,2]
[315464609,1709053842283,-500.0,0.00020273,2]
[315464610,1709053842292,-501.97109407,0.00020273,2]
[315464611,1709053842303,-1601.19,0.00020273,2]
[315464612,1709053842313,-500.0,0.00020273,2]
[315464613,1709053842323,-500.0,0.00020273,2]
[315464614,1709053842333,-337.95024407,0.00020273,2]
[315464615,1709053842343,-500.0,0.00020273,2]
[315464616,1709053842353,-500.0,0.00020273,2]
[315464617,1709053842363,-500.0,0.00020273,2]
[315464618,1709053842372,-500.0,0.00020273,2]
[315464619,1709053842381,-500.0,0.00020273,2]
[315464620,1709053842390,-501.12415207,0.00020273,2]
[315464621,1709053842400,-1844.93,0.00020273,2]
[315464622,1709053842410,-683.94,0.00020273,2]
[315464623,1709053842419,-500.0,0.00020273,2]
[315464624,1709053842508,-378.73239261,0.00020273,2]
[315464625,1709053842518,-873.22,0.00020273,2]
[315464626,1709053842527,-500.0,0.00020273,2]
[315464627,1709053842536,-673.71,0.00020273,2]
[315464628,1709053842546,-500.0,0.00020273,2]
[315464629,1709053842556,-500.0,0.00020273,2]
[315464630,1709053842565,-500.0,0.00020273,2]
[315464631,1709053842574,-435.3883197,0.00020273,2]
[315464632,1709053842583,-500.0,0.00020273,2]
[315464633,1709053842593,-500.0,0.00020273,2]
[315464634,1709053842603,-838.02,0.00020273,2]
[315464635,1709053842612,-500.0,0.00020273,2]
[315464636,1709053842621,-500.0,0.00020273,2]
[315464637,1709053842630,-500.0,0.00020273,2]
[315464638,1709053842639,-758.26,0.00020273,2]
[315464639,1709053842648,-500.0,0.00020273,2]
[315464640,1709053842658,-500.0,0.00020273,2]
[315464641,1709053842667,-500.0,0.00020273,2]
[315464642,1709053842676,-500.0,0.00020273,2]
[315464643,1709053842685,-368.06715263,0.00020273,2]
[315464644,1709053842695,-1984.31,0.00020273,2]
[315464645,1709053842705,-1684.36,0.00020273,2]
[315464646,1709053842715,-210.33764513,0.00020273,2]
[315464647,1709053842724,-500.0,0.00020273,2]
[315464648,1709053842733,-500.0,0.00020273,2]
[315464649,1709053842742,-500.0,0.00020273,2]
[315464650,1709053842752,-500.0,0.00020273,2]
[315464651,1709053842761,-989.03,0.00020273,2]
[315464652,1709053842771,-500.0,0.00020273,2]
[315464653,1709053842780,-694.64,0.00020273,2]
[315464654,1709053842789,-882.47,0.00020273,2]
[315464655,1709053842800,-3226.57,0.00020273,2]
[315464656,1709053842809,-500.96626582,0.00020273,2]
[315464657,1709053842818,-984.09,0.00020273,2]
[315464658,1709053842827,-2838.36,0.00020273,2]
[315464659,1709053842836,-1374.59,0.00020273,2]
[315464660,1709053842846,-911.3,0.00020273,2]
[315464661,1709053842855,-500.0,0.00020273,2]
[315464662,1709053842865,-2293.72,0.00020273,2]
[315464663,1709053842874,-1120.11,0.00020273,2]
[315464664,1709053842884,-500.0,0.00020273,2]
[315464665,1709053842893,-890.52,0.00020273,2]
[315464666,1709053842903,-500.0,0.00020273,2]
[315464667,1709053842912,-500.0,0.00020273,2]
[315464668,1709053842921,-500.0,0.00020273,2]
[315464669,1709053842931,-2124.69,0.00020273,2]
[315464670,1709053842941,-11017.86,0.00020273,2]
[315464671,1709053842950,-500.0,0.00020273,2]
[315464672,1709053842959,-201.08560763,0.00020273,2]
[315464673,1709053842968,-500.0,0.00020273,2]
[315464674,1709053842977,-500.0,0.00020273,2]
[315464675,1709053842986,-500.0,0.00020273,2]
[315464676,1709053842995,-20172.39,0.00020273,2]
[315464677,1709053843004,-4494.29,0.00020273,2]
[315464678,1709053843013,-568.07769231,0.00020273,2]
[315464679,1709053843022,-500.0,0.00020273,2]
[315464680,1709053843031,-1616.23,0.00020273,2]
[315464681,1709053843040,-587.47,0.00020273,2]
[315464682,1709053843049,-500.0,0.00020273,2]
[315464683,1709053843059,-3383.21,0.00020273,2]
[315464684,1709053843068,-500.0,0.00020273,2]
[315464685,1709053843077,-1522.97,0.00020273,2]
[315464686,1709053843087,-608.09,0.00020273,2]
[315464687,1709053843096,-1485.48,0.00020273,2]
[315464688,1709053843106,-500.0,0.00020273,2]
[315464689,1709053843114,-505.32325453,0.00020273,2]
[315464690,1709053843127,-1947.34674547,0.00020273,2]
[315464691,1709053843137,-3487.73,0.00020273,2]
[315464692,1709053843147,-7378.0,0.00020273,2]
[315464693,1709053843157,-4352.89,0.00020273,2]
[315464694,1709053843166,-1201.87912558,0.00020273,2]
[315464695,1709053843178,-353.0600004,0.00020273,2]
[315464704,1709053844895,-7499.34638883,0.00020273,2]
[315464705,1709053844907,-504.33594992,0.00020273,2]
[315464706,1709053844961,-2268.97823526,0.00020273,2]
[315464728,1709053846702,-952.42617288,0.00020273,2]
[315464729,1709053846888,-3565.657396,0.00020273,2]
[315464739,1709053850362,-408.43540801,0.000189,2]
[315464740,1709053850373,-159.02038948,0.00019178,2]
[315464741,1709053850382,-5639.04673113,0.00020273,2]
[315464742,1709053850392,-3933.49747137,0.00020273,2]
[315464743,1709053850404,-945.11252863,0.00020273,2]
[315464744,1709053850414,-500.0,0.00020273,2]
[315464745,1709053850423,-920.52,0.00020273,2]
[315464746,1709053850433,-580.0,0.000203,2]
[315464747,1709053850442,-1769.11607813,0.00020373,2]
[315464748,1709053850532,-500.0,0.0002038,2]
[315464749,1709053850542,-175.5,0.000204,2]
[315464751,1709053850552,-1769.11607812,0.00020432,2]
[315464752,1709053850563,-1747.70332613,0.0002047,2]
[315464753,1709053850573,-155.47466532,0.0002047,2]
[315464754,1709053850582,-197.90522395,0.0002047,2]
[315464755,1709053850591,-429.13988284,0.0002047,2]
[315464756,1709053850600,-274.74613933,0.0002047,2]
[315464757,1709053850610,-677.52336534,0.0002047,2]
[315464758,1709053850620,-281.28625655,0.0002047,2]
[315464759,1709053850629,-226.46802776,0.0002047,2]
[315464760,1709053850639,-704.04980982,0.0002047,2]
[315464761,1709053850649,-1578.89505944,0.00020471,2]
[315464762,1709053850659,-157.69966264,0.00020471,2]
[315464763,1709053850669,-500.0,0.00020472,2]
[315464764,1709053850679,-500.0,0.00020472,2]
[315464765,1709053850688,-500.0,0.00020472,2]
[315464766,1709053850697,-500.0,0.00020472,2]
[315464767,1709053850706,-500.0,0.00020472,2]
[315464768,1709053850716,-500.0,0.00020472,2]
[315464769,1709053850725,-500.0,0.00020472,2]
[315464770,1709053850734,-435.8847924,0.00020472,2]
[315464771,1709053850744,-500.0,0.00020472,2]
[315464772,1709053850753,-500.0,0.00020472,2]
[315464773,1709053850762,-500.0,0.00020472,2]
[315464775,1709053850772,-500.0,0.00020472,2]
[315464776,1709053850781,-500.0,0.00020472,2]
[315464777,1709053850791,-500.0,0.00020472,2]
[315464778,1709053850801,-500.0,0.00020472,2]
[315464779,1709053850812,-500.0,0.00020472,2]
[315464780,1709053850822,-500.0,0.00020472,2]
[315464781,1709053850832,-500.0,0.00020472,2]
[315464782,1709053850841,-500.0,0.00020472,2]
[315464783,1709053850851,-500.0,0.00020472,2]
[315464784,1709053850860,-500.0,0.00020472,2]
[315464785,1709053850870,-301.40859061,0.00020472,2]
[315464786,1709053850879,-500.0,0.00020472,2]
[315464787,1709053850892,-500.0,0.00020472,2]
[315464788,1709053850901,-500.0,0.00020472,2]
[315464789,1709053850910,-500.0,0.00020472,2]
[315464790,1709053850919,-500.0,0.00020472,2]
[315464791,1709053850928,-500.0,0.00020472,2]
[315464792,1709053850938,-500.0,0.00020472,2]
[315464793,1709053850947,-500.0,0.00020472,2]
[315464794,1709053850956,-500.0,0.00020472,2]
[315464795,1709053850966,-500.0,0.00020472,2]
[315464796,1709053850975,-500.0,0.00020472,2]
[315464797,1709053850984,-500.0,0.00020472,2]
[315464798,1709053850994,-500.0,0.00020472,2]
[315464799,1709053851003,-500.0,0.00020472,2]
[315464800,1709053851013,-500.0,0.00020472,2]
[315464801,1709053851022,-500.0,0.00020472,2]
[315464802,1709053851031,-500.0,0.00020472,2]
[315464803,1709053851041,-500.0,0.00020472,2]
[315464804,1709053851050,-500.0,0.00020472,2]
[315464805,1709053851061,-500.0,0.00020472,2]
[315464806,1709053851071,-500.0,0.00020472,2]
[315464807,1709053851080,-500.0,0.00020472,2]
[315464808,1709053851089,-549.93866426,0.00020472,2]
[315464809,1709053851099,-500.0,0.00020472,2]
[315464810,1709053851109,-500.0,0.00020472,2]
[315464811,1709053851119,-500.0,0.00020472,2]
[315464812,1709053851128,-500.0,0.00020472,2]
[315464813,1709053851138,-500.0,0.00020472,2]
[315464814,1709053851148,-500.0,0.00020472,2]
[315464815,1709053851157,-500.0,0.00020472,2]
[315464816,1709053851167,-500.0,0.00020472,2]
[315464817,1709053851176,-482.36086332,0.00020472,2]
[315464829,1709054452204,176.699561,0.00017746,2]
[315464830,1709054508084,328.41730665,0.00017924,2]
[315464832,1709054641494,5748.6689999,0.00017759,2]
[315464834,1709054898997,164.22477025,0.00017901,2]
[315464873,1709055031928,-677.63039437,0.00017992,2]
[315464875,1709055031938,-883.22604544,0.00017992,2]
[315464877,1709055031947,-155.18622347,0.00017993,2]
[315464879,1709055031956,-640.33992365,0.00017994,2]
[315464881,1709055031965,-983.5022252,0.00018183,2]
[315464883,1709055031974,-406.17415768,0.000189,2]
[315464885,1709055031984,-155.18622347,0.00019,2]
[315464887,1709055031993,-484.6448808,0.00019178,2]
[315464889,1709055032002,-552.19583959,0.00019178,2]
[315464891,1709055032012,-500.0,0.00019178,2]
[315464893,1709055032021,-500.0,0.00019178,2]
[315464895,1709055032030,-500.0,0.00019178,2]
[315464897,1709055032039,-500.0,0.00019178,2]
[315464899,1709055032048,-500.0,0.00019178,2]
[315464901,1709055032057,-500.0,0.00019178,2]
[315464903,1709055032067,-500.0,0.00019178,2]
[315464905,1709055032077,-500.0,0.00019178,2]
[315464907,1709055032086,-500.0,0.00019178,2]
[315464909,1709055032095,-190.12652069,0.00019178,2]
[315464911,1709055032104,-500.0,0.00019178,2]
[315464913,1709055032113,-678.58,0.00019178,2]
[315464915,1709055032122,-500.0,0.00019178,2]
[315464917,1709055032131,-500.0,0.00019178,2]
[315464919,1709055032141,-241.83685928,0.00019178,2]
[315464921,1709055032150,-500.0,0.00019178,2]
[315464923,1709055032159,-500.0,0.00019178,2]
[315464925,1709055032168,-500.0,0.00019178,2]
[315464927,1709055032177,-255.55957885,0.00019178,2]
[315464929,1709055032186,-851.46,0.00019178,2]
[315464930,1709055032195,-500.0,0.00019178,2]
[315464933,1709055032205,-500.0,0.00019178,2]
[315464934,1709055032215,-502.22643844,0.00019178,2]
[315464936,1709055032224,-500.0,0.00019178,2]
[315464938,1709055032233,-298.46954899,0.00019178,2]
[315464939,1709055032242,-500.0,0.00019178,2]
[315464941,1709055032251,-500.0,0.00019178,2]
[315464943,1709055032261,-752.29,0.00019178,2]
[315464945,1709055032270,-500.0,0.00019178,2]
[315464946,1709055032280,-500.0,0.00019178,2]
[315464947,1709055032289,-503.86862046,0.00019178,2]
[315464949,1709055032300,-507.68334626,0.00019178,2]
[315464951,1709055032310,-500.0,0.00019178,2]
[315464953,1709055032322,-500.0,0.00019178,2]
[315464955,1709055032332,-510.03816746,0.00019178,2]
[315464957,1709055032341,-500.0,0.00019178,2]
[315464959,1709055032350,-500.0,0.00019178,2]
[315464961,1709055032359,-500.0,0.00019178,2]
[315464962,1709055032368,-501.01152787,0.00019178,2]
[315464964,1709055032377,-500.0,0.00019178,2]
[315464966,1709055032387,-500.0,0.00019178,2]
[315464968,1709055032396,-500.0,0.00019178,2]
[315464969,1709055032406,-500.0,0.00019178,2]
[315464971,1709055032415,-500.0,0.00019178,2]
[315464972,1709055032425,-500.0,0.00019178,2]
[315464973,1709055032434,-500.0,0.00019178,2]
[315464974,1709055032444,-151.0,0.00019178,2]
[315464975,1709055032453,-500.0,0.00019178,2]
[315464976,1709055032462,-500.0,0.00019178,2]
[315464977,1709055032473,-698.45,0.00019178,2]
[315464978,1709055032482,-502.42542064,0.00019178,2]
[315464979,1709055032491,-500.0,0.00019178,2]
[315464980,1709055032501,-500.0,0.00019178,2]
[315464981,1709055032510,-500.0,0.00019178,2]
[315464982,1709055032522,-500.0,0.00019178,2]
[315464983,1709055032531,-500.0,0.00019178,2]
[315464984,1709055032540,-500.0,0.00019178,2]
[315464985,1709055032550,-897.13,0.00019178,2]
[315464986,1709055032559,-1403.58,0.00019178,2]
[315464988,1709055032571,-999.26,0.00019178,2]
[315464990,1709055032581,-500.0,0.00019178,2]
[315464992,1709055032591,-495.61507552,0.00019178,2]
[315464994,1709055032600,-500.0,0.00019178,2]
[315464996,1709055032609,-500.0,0.00019178,2]
[315464998,1709055032619,-500.0,0.00019178,2]
[315465000,1709055032628,-500.0,0.00019178,2]
[315465002,1709055032637,-500.0,0.00019178,2]
[315465004,1709055032647,-500.0,0.00019178,2]
[315465006,1709055032657,-500.0,0.00019178,2]
[315465008,1709055032666,-500.0,0.00019178,2]
[315465010,1709055032679,-576.22818176,0.00019178,2]
[315465012,1709055032689,-500.0,0.00019178,2]
[315465014,1709055032698,-500.0,0.00019178,2]
[315465016,1709055032707,-500.0,0.00019178,2]
[315465018,1709055032717,-500.0,0.00019178,2]
[315465020,1709055032727,-500.0,0.00019178,2]
[315465022,1709055032736,-618.23,0.00019178,2]
[315465023,1709055032746,-500.0,0.00019178,2]
[315465025,1709055032756,-500.0,0.00019178,2]
[315465027,1709055032766,-500.0,0.00019178,2]
[315465030,1709055032775,-500.0,0.00019178,2]
[315465032,1709055032785,-500.0,0.00019178,2]
[315465034,1709055032794,-500.0,0.00019178,2]